fUSD/lending_fUSD_20250617
["ID","MTS","AMOUNT","RATE_DAILY","PERIOD"]
[366206391,1750119743453,154.96,0.00015203,2]
[366206392,1750119777508,908.57,0.00015203,2]
[366206393,1750119790626,163.52,0.00015199,2]
[366206394,1750119811318,666.0,0.00015196,2]
[366206395,1750119987505,1000.0,0.00015217,2]
[366206396,1750120010222,250.0,0.00015217,2]
[366206398,1750120091922,340.0,0.0001492,2]
[366206399,1750120092169,340.0,0.00015375,2]
[366206400,1750120110608,150.0,0.00020099,120]
[366206402,1750120123462,4341.74465977,0.000151,2]
[366206421,1750120179859,244.0,0.00024657,120]
[366206428,1750120231817,-168.0,0.00015697,2]
[366206429,1750120231828,-250.0,0.00015714,2]
[366206430,1750120231838,-600.0,0.00015732,4]
[366206431,1750120231848,-167.2,0.00015756,2]
[366206432,1750120231857,-600.0,0.00015761,4]
[366206433,1750120231868,-151.0,0.00015793,2]
[366206434,1750120231878,-151.0,0.00015795,2]
[366206435,1750120231887,-151.0,0.00015795,2]
[366206436,1750120231897,-222.0,0.0001583,3]
[366206437,1750120231907,-340.0,0.00015831,3]
[366206438,1750120231917,-222.0,0.00015841,4]
[366206439,1750120231927,-600.0,0.00015841,4]
[366206440,1750120231937,-700.0,0.000159,5]
[366206441,1750120231946,-222.0,0.000159,5]
[366206442,1750120231956,-1200.0,0.00015988,2]
[366206443,1750120231966,-300.0,0.00015989,2]
[366206444,1750120231976,-300.0,0.00015989,2]
[366206445,1750120231986,-1957.856,0.0001599,2]
[366206446,1750120231997,-207.4,0.0001599,2]
[366206447,1750120232007,-500.0,0.0001599,2]
[366206448,1750120232016,-500.0,0.0001599,2]
[366206449,1750120232026,-500.0,0.0001599,2]
[366206450,1750120232035,-500.0,0.0001599,2]
[366206451,1750120232045,-500.0,0.0001599,2]
[366206452,1750120232054,-687.62605363,0.0001599,2]
[366206453,1750120232064,-500.0,0.0001599,2]
[366206454,1750120232074,-500.0,0.0001599,2]
[366206455,1750120232084,-500.0,0.0001599,2]
[366206456,1750120232094,-500.0,0.0001599,2]
[366206457,1750120232104,-500.0,0.0001599,2]
[366206458,1750120232113,-571.66460153,0.0001599,2]
[366206459,1750120232125,-500.0,0.0001599,2]
[366206460,1750120232135,-500.0,0.0001599,2]
[366206461,1750120232145,-625.9911222,0.0001599,2]
[366206462,1750120232155,-500.0,0.0001599,2]
[366206463,1750120232165,-500.0,0.0001599,2]
[366206465,1750120232175,-500.0,0.0001599,2]
[366206466,1750120232185,-500.0,0.0001599,2]
[366206467,1750120232195,-500.0,0.0001599,2]
[366206468,1750120232205,-500.0,0.0001599,2]
[366206469,1750120232216,-500.0,0.0001599,2]
[366206470,1750120232225,-500.0,0.0001599,2]
[366206471,1750120232235,-500.0,0.0001599,2]
[366206472,1750120232245,-500.0,0.0001599,2]
[366206473,1750120232255,-151.0,0.0001599,2]
[366206474,1750120232264,-500.0,0.0001599,2]
[366206475,1750120232274,-500.0,0.0001599,2]
[366206476,1750120232284,-328.13368032,0.0001599,2]
[366206477,1750120232295,-151.0,0.0001599,2]
[366206478,1750120232304,-151.0,0.0001599,2]
[366206479,1750120232314,-151.0,0.0001599,2]
[366206480,1750120232323,-151.0,0.0001599,2]
[366206481,1750120232333,-151.0,0.0001599,2]
[366206482,1750120232342,-151.0,0.0001599,2]
[366206483,1750120232352,-26.25430718,0.0001599,2]
[366206484,1750120232367,-131.50937741,0.0001599,2]
[366206485,1750120232377,-3318.09321654,0.00016,2]
[366206486,1750120232388,-617.9141118,0.00016,2]
[366206487,1750120232399,-1133.24290978,0.00016,2]
[366206488,1750120232411,-45682.52163798,0.00016,2]
[366206489,1750120232421,-1500.0,0.00016,5]
[366206490,1750120232431,-22510.90180558,0.00016,3]
[366206491,1750120232442,-350.0,0.00016,3]
[366206531,1750120232838,-128.25220985,0.00016,3]
[366206534,1750120232848,-639.62779015,0.00016045,2]
[366206545,1750120232913,-1390.66888185,0.00016045,2]
[366206548,1750120232924,-461.62,0.00016055,2]
[366206551,1750120232933,-797.51,0.00016055,2]
[366206553,1750120232943,-461.62,0.00016055,2]
[366206555,1750120232952,-797.51,0.00016055,2]
[366206557,1750120232962,-797.51,0.00016055,2]
[366206559,1750120232971,-797.51,0.00016055,2]
[366206560,1750120232980,-797.51,0.00016055,2]
[366206563,1750120232990,-797.51,0.00016055,2]
[366206565,1750120233000,-797.51,0.00016055,2]
[366206566,1750120233010,-1415.0,0.00016094,2]
[366206568,1750120233019,-619.14010106,0.000161,5]
[366206569,1750120233031,-802.31557787,0.000161,5]
[366206590,1750120237955,-222.0,0.00015794,2]
[366206591,1750120237966,-236.54398067,0.000161,5]
[366206598,1750120239887,-542.0003404,0.000161,5]
[366206599,1750120239898,-590.68485204,0.000161,2]
[366206600,1750120239909,-590.68485204,0.000161,2]
[366206601,1750120239919,-590.68485204,0.000161,2]
[366206602,1750120239930,-590.68485204,0.000161,2]
[366206603,1750120239940,-590.68485204,0.000161,2]
[366206604,1750120239951,-590.68485204,0.000161,2]
[366206605,1750120239961,-2105.41764886,0.000161,2]
[366206606,1750120239971,-590.68485204,0.00016107,2]
[366206607,1750120239981,-415.0,0.00016119,2]
[366206608,1750120239991,-590.68485204,0.00016141,2]
[366206609,1750120240001,-2183.31810187,0.00016155,2]
[366206610,1750120240012,-331.42922953,0.00016164,2]
[366206611,1750120240022,-162.0,0.00016164,2]
[366206612,1750120240032,-590.68485204,0.00016176,2]
[366206613,1750120240042,-156.55935743,0.00016189,2]
[366206614,1750120240052,-306.82,0.00016192,2]
[366206615,1750120240061,-1164.67,0.00016192,2]
[366206616,1750120240071,-171.81,0.00016192,2]
[366206617,1750120240081,-300.0,0.00016192,2]
[366206618,1750120240091,-713.2,0.00016192,2]
[366206619,1750120240100,-455.03,0.00016192,2]
[366206620,1750120240110,-303.68,0.00016192,2]
[366206621,1750120240121,-1164.67,0.00016192,2]
[366206622,1750120240133,-150.0,0.00016192,2]
[366206623,1750120240143,-1164.67,0.00016192,2]
[366206624,1750120240154,-1164.67,0.00016192,2]
[366206625,1750120240164,-300.0,0.00016192,2]
[366206626,1750120240174,-150.0,0.00016192,2]
[366206627,1750120240184,-783.08,0.00016192,2]
[366206628,1750120240193,-2721.27630802,0.00016194,2]
[366206629,1750120240203,-172.01704752,0.00016196,2]
[366206630,1750120240214,-1919.2485,0.00016197,2]
[366206631,1750120240227,-1962.05776238,0.00016198,2]
[366206632,1750120240395,-887.50430778,0.00016198,2]
[366206634,1750120240410,-361.2840833,0.00016198,2]
[366206635,1750120240425,-1405.56105695,0.00016198,2]
[366206636,1750120240441,-317.78920299,0.00016198,2]
[366206637,1750120240497,-2329.89792364,0.00016198,2]
[366206639,1750120241657,200.0,0.0001492,2]
[366206644,1750120242770,-640.31486296,0.00016198,2]
[366206645,1750120242781,-3000.0,0.000162,5]
[366206646,1750120242792,-590.68485204,0.0001621,2]
[366206647,1750120242803,-2264.10087164,0.0001621,2]
[366206648,1750120242814,-590.68485204,0.00016245,2]
[366206649,1750120242825,-868.48676193,0.00016249,2]
[366206650,1750120242836,-1551.602969,0.00016256,2]
[366206651,1750120242848,-1128.12483039,0.00016265,2]
[366206652,1750120243295,-293.89633352,0.00016265,2]
[366206680,1750120245775,-721.180958,0.00016265,2]
[366206683,1750120245788,-150.0,0.00016267,2]
[366206685,1750120245799,-150.0,0.00016267,2]
[366206687,1750120245811,-150.0,0.0001627,2]
[366206689,1750120245822,-833.8156298,0.00016272,2]
[366206691,1750120245833,-2721.276308,0.00016272,2]
[366206693,1750120245845,-150.0,0.00016273,2]
[366206696,1750120245856,-490.0,0.00016274,2]
[366206698,1750120245869,-490.0,0.00016274,2]
[366206699,1750120245880,-490.0,0.00016274,2]
[366206700,1750120245893,-490.0,0.00016274,2]
[366206701,1750120245904,-490.0,0.00016274,2]
[366206702,1750120245915,-490.0,0.00016274,2]
[366206703,1750120245927,-490.0,0.00016274,2]
[366206704,1750120245938,-490.0,0.00016274,2]
[366206705,1750120245950,-545.74,0.00016274,2]
[366206706,1750120245961,-490.0,0.00016274,2]
[366206707,1750120245972,-490.0,0.00016274,2]
[366206708,1750120245983,-490.0,0.00016274,2]
[366206709,1750120245994,-490.0,0.00016274,2]
[366206710,1750120246005,-490.0,0.00016274,2]
[366206711,1750120246016,-490.0,0.00016274,2]
[366206712,1750120246026,-490.0,0.00016274,2]
[366206713,1750120246037,-342.86430808,0.00016274,2]
[366206714,1750120246051,-147.13569192,0.00016274,2]
[366206715,1750120246063,-490.0,0.00016274,2]
[366206716,1750120246075,-470.54056235,0.00016274,2]
[366206717,1750120246102,-19.45943765,0.00016274,2]
[366206718,1750120246115,-560.86665112,0.00016274,2]
[366206719,1750120246127,-490.0,0.00016274,2]
[366206720,1750120246144,-490.0,0.00016274,2]
[366206721,1750120246156,-150.0,0.00016275,2]
[366206722,1750120246169,-150.0,0.00016276,2]
[366206723,1750120246180,-150.0,0.00016277,2]
[366206724,1750120246192,-590.68485204,0.00016279,2]
[366206725,1750120246204,-150.0,0.00016281,2]
[366206726,1750120246216,-1675.18903919,0.00016283,2]
[366206727,1750120246230,-3395.9246,0.00016283,2]
[366206728,1750120246250,-4241.3904,0.00016283,2]
[366206729,1750120246265,-6153.18286081,0.00016283,2]
[366206731,1750120246276,-150.0,0.00016283,2]
[366206733,1750120246288,-1739.09,0.00016286,2]
[366206735,1750120246300,-150.0,0.00016286,2]
[366206737,1750120246311,-150.0,0.00016286,2]
[366206739,1750120246323,-340.0,0.00016286,3]
[366206741,1750120246334,-150.0,0.00016288,2]
[366206743,1750120246346,-150.0,0.00016289,2]
[366206745,1750120246357,-150.0,0.0001629,2]
[366206748,1750120246368,-150.0,0.00016294,2]
[366206750,1750120246379,-202.98,0.00016295,2]
[366206751,1750120246394,-490.0,0.00016295,2]
[366206754,1750120246407,-672.23,0.00016295,2]
[366206756,1750120246418,-187.09,0.00016295,2]
[366206758,1750120246429,-542.55,0.00016295,2]
[366206760,1750120246441,-589.07,0.00016295,2]
[366206762,1750120246452,-490.0,0.00016295,2]
[366206764,1750120246464,-490.0,0.00016295,2]
[366206766,1750120246475,-500.0,0.00016295,2]
[366206768,1750120246487,-742.19,0.00016295,2]
[366206770,1750120246498,-617.42,0.00016295,2]
[366206773,1750120246510,-644.28,0.00016295,2]
[366206775,1750120246522,-490.0,0.00016295,2]
[366206777,1750120246535,-645.47,0.00016295,2]
[366206779,1750120246546,-490.0,0.00016295,2]
[366206781,1750120246558,-1447.19,0.00016295,2]
[366206783,1750120246573,-490.0,0.00016295,2]
[366206785,1750120246584,-490.0,0.00016295,2]
[366206788,1750120246596,-918.11,0.00016295,2]
[366206790,1750120246608,-1208.81,0.00016295,2]
[366206792,1750120246619,-490.0,0.00016295,2]
[366206794,1750120246631,-649.86,0.00016295,2]
[366206796,1750120246645,-434.26,0.00016295,2]
[366206798,1750120246656,-490.0,0.00016295,2]
[366206800,1750120246667,-918.78,0.00016295,2]
[366206802,1750120246678,-535.83,0.00016295,2]
[366206805,1750120246689,-490.0,0.00016295,2]
[366206806,1750120246700,-490.0,0.00016295,2]
[366206808,1750120246711,-639.99,0.00016295,2]
[366206810,1750120246722,-490.0,0.00016295,2]
[366206812,1750120246733,-485.06,0.00016295,2]
[366206813,1750120246745,-490.0,0.00016295,2]
[366206814,1750120246757,-490.0,0.00016295,2]
[366206815,1750120246767,-767.59,0.00016295,2]
[366206816,1750120246778,-500.11,0.00016295,2]
[366206817,1750120246788,-490.0,0.00016295,2]
[366206818,1750120246799,-490.0,0.00016295,2]
[366206819,1750120246810,-878.11,0.00016295,2]
[366206820,1750120246821,-647.12,0.00016295,2]
[366206821,1750120246831,-490.0,0.00016295,2]
[366206822,1750120246842,-490.0,0.00016295,2]
[366206823,1750120246853,-490.0,0.00016295,2]
[366206824,1750120246863,-490.0,0.00016295,2]
[366206825,1750120246874,-490.0,0.00016295,2]
[366206826,1750120246886,-490.0,0.00016295,2]
[366206827,1750120246897,-490.0,0.00016295,2]
[366206828,1750120246907,-490.0,0.00016295,2]
[366206829,1750120246919,-490.0,0.00016295,2]
[366206830,1750120246930,-490.0,0.00016295,2]
[366206831,1750120246941,-490.0,0.00016295,2]
[366206832,1750120246952,-229.19590004,0.00016295,2]
[366206833,1750120246963,-490.0,0.00016295,2]
[366206834,1750120246974,-572.37,0.00016295,2]
[366206835,1750120246986,-490.0,0.00016295,2]
[366206836,1750120246997,-490.0,0.00016295,2]
[366206837,1750120247007,-490.0,0.00016295,2]
[366206838,1750120247018,-490.0,0.00016295,2]
[366206839,1750120247028,-490.0,0.00016295,2]
[366206840,1750120247040,-490.0,0.00016295,2]
[366206841,1750120247050,-490.0,0.00016295,2]
[366206842,1750120247576,-490.0,0.00016296,2]
[366206843,1750120247606,-490.0,0.00016296,2]
[366206844,1750120247628,-360.92753856,0.00016296,2]
[366206845,1750120247652,-490.0,0.00016296,2]
[366206846,1750120247663,-491.35904544,0.00016296,2]
[366206847,1750120247672,-490.0,0.00016296,2]
[366206848,1750120247682,-490.0,0.00016296,2]
[366206849,1750120247691,-169.76277888,0.00016296,2]
[366206850,1750120247701,-490.0,0.00016296,2]
[366206851,1750120247710,-490.0,0.00016296,2]
[366206852,1750120247719,-490.0,0.00016296,2]
[366206853,1750120247728,-490.0,0.00016296,2]
[366206854,1750120247738,-490.0,0.00016296,2]
[366206855,1750120247747,-490.0,0.00016296,2]
[366206856,1750120247756,-490.0,0.00016296,2]
[366206857,1750120247766,-490.0,0.00016296,2]
[366206858,1750120247775,-490.0,0.00016296,2]
[366206859,1750120247785,-490.0,0.00016296,2]
[366206860,1750120247794,-490.0,0.00016296,2]
[366206861,1750120247804,-490.0,0.00016296,2]
[366206862,1750120247813,-490.0,0.00016296,2]
[366206863,1750120247823,-490.0,0.00016296,2]
[366206864,1750120247833,-490.0,0.00016296,2]
[366206865,1750120247843,-490.0,0.00016296,2]
[366206866,1750120247853,-490.0,0.00016296,2]
[366206867,1750120247863,-490.0,0.00016296,2]
[366206868,1750120247873,-490.0,0.00016296,2]
[366206869,1750120247883,-363.80776421,0.00016296,2]
[366206870,1750120247896,-490.0,0.00016296,2]
[366206871,1750120247906,-490.0,0.00016296,2]
[366206872,1750120247916,-490.0,0.00016296,2]
[366206873,1750120247926,-535.81,0.00016296,2]
[366206874,1750120247936,-490.0,0.00016296,2]
[366206875,1750120247946,-490.0,0.00016296,2]
[366206876,1750120247956,-490.0,0.00016296,2]
[366206877,1750120247965,-490.0,0.00016296,2]
[366206878,1750120247975,-339.44694906,0.00016296,2]
[366206879,1750120247985,-490.0,0.00016296,2]
[366206880,1750120247994,-490.0,0.00016296,2]
[366206881,1750120248004,-490.0,0.00016296,2]
[366206882,1750120248013,-490.0,0.00016296,2]
[366206883,1750120248023,-490.0,0.00016296,2]
[366206884,1750120248034,-490.0,0.00016296,2]
[366206885,1750120248044,-268.96776561,0.00016296,2]
[366206886,1750120248054,-490.0,0.00016296,2]
[366206887,1750120248065,-490.0,0.00016296,2]
[366206888,1750120248075,-490.0,0.00016296,2]
[366206889,1750120248086,-490.0,0.00016296,2]
[366206890,1750120248097,-490.0,0.00016296,2]
[366206891,1750120248107,-490.0,0.00016296,2]
[366206892,1750120248118,-490.0,0.00016296,2]
[366206893,1750120248130,-490.0,0.00016296,2]
[366206894,1750120248146,-491.06,0.00016296,2]
[366206895,1750120248157,-490.0,0.00016296,2]
[366206896,1750120248167,-490.0,0.00016296,2]
[366206897,1750120248178,-450.11,0.00016296,2]
[366206898,1750120248188,-490.0,0.00016296,2]
[366206899,1750120248198,-221.26,0.00016296,2]
[366206900,1750120248208,-490.0,0.00016296,2]
[366206901,1750120248218,-490.0,0.00016296,2]
[366206902,1750120248228,-490.0,0.00016296,2]
[366206903,1750120248239,-233.83,0.00016296,2]
[366206904,1750120248249,-490.0,0.00016296,2]
[366206905,1750120248258,-490.0,0.00016296,2]
[366206906,1750120248268,-218.86,0.00016296,2]
[366206907,1750120248279,-490.0,0.00016296,2]
[366206908,1750120248291,-490.0,0.00016296,2]
[366206909,1750120248302,-490.0,0.00016296,2]
[366206910,1750120248313,-490.0,0.00016296,2]
[366206911,1750120248323,-490.0,0.00016296,2]
[366206912,1750120248334,-490.0,0.00016296,2]
[366206913,1750120248344,-500.0,0.00016296,2]
[366206914,1750120248354,-490.0,0.00016296,2]
[366206915,1750120248364,-490.0,0.00016296,2]
[366206916,1750120248374,-3138.33,0.00016296,2]
[366206917,1750120248386,-490.0,0.00016296,2]
[366206918,1750120248398,-490.0,0.00016296,2]
[366206919,1750120248408,-490.0,0.00016296,2]
[366206920,1750120248418,-490.0,0.00016296,2]
[366206921,1750120248428,-490.0,0.00016296,2]
[366206922,1750120248439,-490.0,0.00016296,2]
[366206923,1750120248450,-490.0,0.00016296,2]
[366206924,1750120248460,-632.18,0.00016296,2]
[366206925,1750120248472,-490.0,0.00016296,2]
[366206926,1750120248483,-490.0,0.00016296,2]
[366206927,1750120248494,-322.11733847,0.00016296,2]
[366206928,1750120248506,-1161.3,0.00016296,2]
[366206929,1750120248518,-689.96,0.00016296,2]
[366206930,1750120248529,-490.0,0.00016296,2]
[366206931,1750120248541,-490.0,0.00016296,2]
[366206932,1750120248552,-490.0,0.00016296,2]
[366206933,1750120248565,-1094.73,0.00016296,2]
[366206934,1750120248577,-1130.21,0.00016296,2]
[366206935,1750120248588,-490.0,0.00016296,2]
[366206936,1750120248603,-515.13,0.00016296,2]
[366206937,1750120248615,-490.0,0.00016296,2]
[366206938,1750120248626,-453.29265872,0.00016296,2]
[366206939,1750120248659,-513.16734128,0.00016296,2]
[366206940,1750120248670,-43.66939062,0.00016296,2]
[366206943,1750120268935,315.09,0.00013699,2]
[366206944,1750120411218,204.94,0.00015286,2]
[366206946,1750120590504,150.0,0.00023518,120]
[366206948,1750120776722,335.0,0.0001535,2]
[366206949,1750120812367,331.0,0.00014741,2]
[366206950,1750120812977,331.0,0.00015199,2]
[366206953,1750120939812,1000.0,0.00015202,2]
[366206954,1750120939852,688.0,0.00024658,120]
[366206955,1750120950494,150.0,0.00023208,120]
[366206956,1750121032970,200.0,0.00015197,7]
[366206957,1750121037910,223.68,0.00015197,2]
[366206958,1750121081921,203.99998,0.00014741,2]
[366206959,1750121120532,3500.0,0.00015,3]
[366206960,1750121133026,150.0,0.0001549,5]
[366206961,1750121171776,324.0,0.00014656,2]
[366206962,1750121172042,324.0,0.00015114,2]
[366206963,1750121174208,500.0,0.000154,3]
[366206964,1750121175621,500.0,0.00015068,2]
[366206965,1750121241984,3000.0,0.00015,2]
[366206966,1750121244215,250.0,0.00015,2]
[366206967,1750121264107,300.0,0.000151,2]
[366206968,1750121291236,2880.0,0.000154,2]
[366206969,1750121311077,150.0,0.00019554,120]
[366206975,1750121372627,299.33,0.00013699,2]
[366206980,1750121431845,-300.0,0.0001555,2]
[366206981,1750121431856,-250.0,0.00015555,2]
[366206982,1750121431866,-221.42883945,0.00015561,2]
[366206983,1750121431898,-78.57116055,0.00015561,2]
[366206984,1750121431908,-324.0,0.00015572,3]
[366206985,1750121431918,-250.0,0.00015582,2]
[366206986,1750121431928,-335.0,0.000156,2]
[366206987,1750121431937,-969.01581903,0.00015669,2]
[366206988,1750121431947,-1500.0,0.000158,5]
[366206989,1750121431956,-335.0,0.0001584,2]
[366206990,1750121431966,-3100.0,0.000159,5]
[366206991,1750121431975,-1200.0,0.00015924,2]
[366206992,1750121431984,-600.0,0.00015925,4]
[366206993,1750121431994,-206.35400464,0.00015943,2]
[366206994,1750121432003,-600.0,0.0001595,4]
[366206995,1750121432013,-868.48676193,0.00015991,2]
[366206996,1750121432022,-300.0,0.00015997,2]
[366206997,1750121432032,-6000.0,0.00016,7]
[366206998,1750121432041,-324.0,0.0001603,3]
[366206999,1750121432051,-600.0,0.00016051,4]
[366207000,1750121432060,-523.38,0.00016055,2]
[366207001,1750121432070,-1376.97,0.00016055,2]
[366207002,1750121432079,-335.0,0.0001609,2]
[366207003,1750121432089,-207.4,0.0001609,2]
[366207004,1750121432098,-492.83,0.000161,2]
[366207005,1750121432108,-506.71,0.000161,2]
[366207006,1750121432118,-152.27,0.000161,2]
[366207007,1750121432129,-505.97,0.000161,2]
[366207008,1750121432141,-304.01,0.000161,2]
[366207009,1750121432150,-503.61,0.000161,2]
[366207010,1750121432159,-644.27033951,0.000161,2]
[366207011,1750121432169,-644.27033933,0.000161,2]
[366207012,1750121432178,-644.27033933,0.000161,2]
[366207013,1750121432187,-644.27033933,0.000161,2]
[366207014,1750121432197,-644.27033933,0.000161,2]
[366207015,1750121432208,-644.27033933,0.000161,2]
[366207016,1750121432218,-3974.80392571,0.000161,5]
[366207017,1750121432231,-610.78578989,0.000161,5]
[366207018,1750121432246,-114.4102844,0.000161,5]
[366207019,1750121432255,-644.27033933,0.00016107,2]
[366207020,1750121432264,-644.27033933,0.00016141,2]
[366207021,1750121432274,-494.42,0.00016155,2]
[366207022,1750121432284,-500.0,0.00016164,2]
[366207023,1750121432294,-500.0,0.00016164,2]
[366207024,1750121432303,-644.27033933,0.00016176,2]
[366207025,1750121432313,-215.28090916,0.00016179,2]
[366207026,1750121432323,-151.44,0.00016192,2]
[366207027,1750121432332,-214.29,0.00016192,2]
[366207028,1750121432342,-228.0124,0.00016195,2]
[366207029,1750121432352,-12994.34815868,0.00016195,2]
[366207030,1750121432363,-7033.04817486,0.00016195,2]
[366207031,1750121432372,-164.46263286,0.00016195,2]
[366207032,1750121432382,-166.38694767,0.00016195,2]
[366207033,1750121432392,-4738.71890873,0.000162,2]
[366207034,1750121432401,-190.0,0.000162,3]
[366207035,1750121432410,-190.0,0.000162,3]
[366207036,1750121432420,-190.0,0.000162,2]
[366207037,1750121432430,-190.0,0.000162,2]
[366207038,1750121432439,-6200.0,0.000162,5]
[366207039,1750121432450,-1810.59467358,0.00016209,2]
[366207040,1750121432462,-1572.0705,0.00016209,2]
[366207041,1750121432478,-622.79038167,0.00016209,2]
[366207042,1750121432490,-4033.23728789,0.00016209,2]
[366207043,1750121432499,-151.0,0.00016209,2]
[366207044,1750121432509,-644.27033933,0.0001621,2]
[366207045,1750121432520,-8633.87303231,0.00016219,2]
[366207046,1750121432536,-768.7,0.00016219,2]
[366207047,1750121432548,-641.51436769,0.00016219,2]
[366207048,1750121432558,-644.27033933,0.00016245,2]
[366207049,1750121432567,-41.37669674,0.0001625,2]
[366207050,1750121432579,-426.10774675,0.0001625,2]
[366207051,1750121432589,-988.89225325,0.00016256,2]
[366207054,1750121437921,-190.0,0.000162,2]
[366207055,1750121437931,-131.22959,0.000162,2]
[366207056,1750121437945,-58.77041,0.000162,2]
[366207057,1750121437956,-368.76034475,0.00016256,2]
[366207058,1750121437967,-500.0,0.00016273,2]
[366207059,1750121437978,-467.7253048,0.00016273,2]
[366207060,1750121437989,-500.0,0.00016273,2]
[366207061,1750121438000,-500.0,0.00016273,2]
[366207062,1750121438021,-500.0,0.00016273,2]
[366207063,1750121438031,-500.66842222,0.00016273,2]
[366207064,1750121438041,-501.41037233,0.00016273,2]
[366207065,1750121438051,-502.41540632,0.00016273,2]
[366207066,1750121438061,-500.0,0.00016273,2]
[366207067,1750121438071,-500.0,0.00016273,2]
[366207068,1750121438082,-500.0,0.00016273,2]
[366207069,1750121438092,-500.0,0.00016273,2]
[366207070,1750121438102,-12994.34815863,0.00016273,2]
[366207071,1750121438114,-1645.90158095,0.00016273,2]
[366207072,1750121438140,-1000.0029746,0.00016273,2]
[366207079,1750121438662,-582.49676357,0.00016273,2]
[366207080,1750121438768,-2498.45087353,0.00016273,2]
[366207081,1750121438781,-368.16204544,0.00016273,2]
[366207082,1750121438794,-938.0339367,0.00016273,2]
[366207083,1750121438805,-833.8156298,0.00016276,2]
[366207084,1750121438816,-222.0,0.00016277,2]
[366207086,1750121438827,-644.27033933,0.00016279,2]
[366207088,1750121438837,-150.96,0.00016285,2]
[366207090,1750121438848,-180.8,0.0001629,2]
[366207092,1750121438864,-1986.03207614,0.00016293,2]
[366207094,1750121438876,-490.0,0.00016293,2]
[366207095,1750121438887,-490.0,0.00016293,2]
[366207096,1750121438899,-490.0,0.00016293,2]
[366207097,1750121438910,-490.0,0.00016293,2]
[366207098,1750121439032,-242.02,0.00016293,2]
[366207101,1750121439044,-490.0,0.00016293,2]
[366207103,1750121439055,-490.0,0.00016293,2]
[366207104,1750121439067,-490.0,0.00016293,2]
[366207105,1750121439078,-490.0,0.00016293,2]
[366207106,1750121439088,-490.0,0.00016293,2]
[366207107,1750121439099,-490.0,0.00016293,2]
[366207108,1750121439108,-490.0,0.00016294,2]
[366207109,1750121439118,-490.0,0.00016294,2]
[366207110,1750121439130,-490.0,0.00016294,2]
[366207111,1750121439142,-490.0,0.00016294,2]
[366207112,1750121439153,-490.0,0.00016294,2]
[366207113,1750121439163,-490.0,0.00016294,2]
[366207114,1750121439174,-356.78471372,0.00016294,2]
[366207115,1750121439185,-490.0,0.00016294,2]
[366207116,1750121439195,-617.54,0.00016294,2]
[366207117,1750121439205,-460.81936497,0.00016294,2]
[366207118,1750121439215,-533.54,0.00016294,2]
[366207119,1750121439226,-381.82287434,0.00016294,2]
[366207120,1750121439235,-490.0,0.00016294,2]
[366207121,1750121439245,-490.0,0.00016294,2]
[366207122,1750121439256,-490.0,0.00016294,2]
[366207123,1750121439266,-490.0,0.00016294,2]